[Event "Live Chess"]
[Site "Chess.com"]
[Date "2024.06.02"]
[Round "-"]
[White "CheckThis4"]
[Black "joellloyd"]
[Result "1-0"]
[WhiteElo "2681"]
[BlackElo "1895"]
[TimeControl "300"]
[EndTime "7:39:59 PDT"]
[Termination "CheckThis4 won by resignation"]

1. d4 {[%clk 0:04:57.7]} 1... Nf6 {[%clk 0:04:59]} 2. Nc3 {[%clk 0:04:56.5]}
2... d5 {[%clk 0:04:57.7]} 3. e4 {[%clk 0:04:56]} 3... dxe4 {[%clk 0:04:53.8]}
4. f3 {[%clk 0:04:55.3]} 4... Bf5 {[%clk 0:04:50.4]} 5. fxe4 {[%clk 0:04:51]}
5... Nxe4 {[%clk 0:04:44.3]} 6. Qf3 {[%clk 0:04:49.7]} 6... Nxc3 {[%clk
0:04:40.7]} 7. bxc3 {[%clk 0:04:43.5]} 7... Bxc2 {[%clk 0:04:30.5]} 8. Qxb7
{[%clk 0:04:38.3]} 8... Nd7 {[%clk 0:04:28.9]} 9. Bb5 {[%clk 0:04:34.9]} 9...
Bf5 {[%clk 0:04:15.1]} 10. Nf3 {[%clk 0:04:17.6]} 10... Rb8 {[%clk 0:04:11.5]}
11. Qc6 {[%clk 0:04:00.4]} 11... Rb6 {[%clk 0:04:01.4]} 12. Qc4 {[%clk
0:03:55.3]} 12... Qb8 {[%clk 0:03:52.5]} 13. Ne5 {[%clk 0:03:45.3]} 13... Rxb5
{[%clk 0:03:31.6]} 14. Qxf7+ {[%clk 0:03:41.6]} 14... Kd8 {[%clk 0:03:30.8]} 15.
Nc6+ {[%clk 0:03:40.4]} 15... Kc8 {[%clk 0:03:27.2]} 16. Nxb8 {[%clk 0:03:35.7]}
16... Bg6 {[%clk 0:03:17.5]} 17. Qe6 {[%clk 0:03:19.9]} 17... Rxb8 {[%clk
0:03:14.5]} 18. O-O {[%clk 0:03:18.3]} 18... Rb6 {[%clk 0:03:06.9]} 19. Qd5
{[%clk 0:03:14.3]} 19... Nf6 {[%clk 0:02:53]} 20. Qa8+ {[%clk 0:03:10.8]} 20...
Kd7 {[%clk 0:02:50.6]} 21. Qxa7 {[%clk 0:03:09.4]} 21... e6 {[%clk 0:02:39.1]}
22. Bf4 {[%clk 0:03:06.4]} 22... Bd6 {[%clk 0:02:37.2]} 23. Bxd6 {[%clk
0:03:05.3]} 23... Rxd6 {[%clk 0:02:36.2]} 24. Qa4+ {[%clk 0:02:59.1]} 24... Ke7
{[%clk 0:02:31]} 25. Qa5 {[%clk 0:02:57.3]} 25... Rc8 {[%clk 0:02:26.9]} 26.
Rae1 {[%clk 0:02:54.4]} 26... Nd5 {[%clk 0:02:20.8]} 27. c4 {[%clk 0:02:52.1]}
27... Nf6 {[%clk 0:01:51.2]} 28. d5 {[%clk 0:02:48.5]} 28... Kf7 {[%clk
0:01:42.3]} 29. dxe6+ {[%clk 0:02:44.6]} 29... Rxe6 {[%clk 0:01:42.2]} 30. Rxe6
{[%clk 0:02:43]} 30... Kxe6 {[%clk 0:01:42.1]} 31. Re1+ {[%clk 0:02:41.3]} 31...
Kf7 {[%clk 0:01:39.3]} 32. Qc5 {[%clk 0:02:38.6]} 32... Kg8 {[%clk 0:01:13.9]}
33. h3 {[%clk 0:02:33]} 33... h6 {[%clk 0:01:11]} 34. Re7 {[%clk 0:02:28.6]}
34... c6 {[%clk 0:01:05.9]} 35. Qa7 {[%clk 0:02:24.1]} 1-0

[Event "Live Chess"]
[Site "Chess.com"]
[Date "2024.06.02"]
[Round "-"]
[White "Dashman93"]
[Black "gmnorfolk"]
[Result "1-0"]
[WhiteElo "2157"]
[BlackElo "2135"]
[TimeControl "300"]
[EndTime "7:40:03 PDT"]
[Termination "Dashman93 won by resignation"]

1. e4 {[%clk 0:04:59]} 1... c5 {[%clk 0:04:58.4]} 2. Nf3 {[%clk 0:04:57.7]} 2...
d6 {[%clk 0:04:55.8]} 3. Bb5+ {[%clk 0:04:56]} 3... Nd7 {[%clk 0:04:54.1]} 4.
O-O {[%clk 0:04:54.5]} 4... Nf6 {[%clk 0:04:53.7]} 5. Ba4 {[%clk 0:04:53.5]}
5... a6 {[%clk 0:04:50.8]} 6. c3 {[%clk 0:04:42.7]} 6... e6 {[%clk 0:04:45.8]}
7. d4 {[%clk 0:04:41.2]} 7... b5 {[%clk 0:04:44.2]} 8. Bc2 {[%clk 0:04:40.3]}
8... Bb7 {[%clk 0:04:43.7]} 9. Re1 {[%clk 0:04:34.7]} 9... Be7 {[%clk
0:04:41.9]} 10. e5 {[%clk 0:04:33]} 10... Nd5 {[%clk 0:04:37.9]} 11. Nbd2 {[%clk
0:04:30.6]} 11... cxd4 {[%clk 0:04:31.9]} 12. cxd4 {[%clk 0:04:29.4]} 12... Qc7
{[%clk 0:04:31.1]} 13. exd6 {[%clk 0:04:25]} 13... Bxd6 {[%clk 0:04:29.7]} 14.
Ne4 {[%clk 0:04:24]} 14... N7f6 {[%clk 0:04:22]} 15. Bg5 {[%clk 0:04:15.8]}
15... Nxe4 {[%clk 0:04:15]} 16. Bxe4 {[%clk 0:04:15.7]} 16... h6 {[%clk
0:04:14.5]} 17. Rc1 {[%clk 0:04:12.2]} 17... Qb6 {[%clk 0:04:03]} 18. Bh4 {[%clk
0:04:07.1]} 18... O-O {[%clk 0:04:00.5]} 19. Ne5 {[%clk 0:04:00.9]} 19... f5
{[%clk 0:03:50.3]} 20. Nd7 {[%clk 0:03:46.9]} 20... Qd8 {[%clk 0:03:45.4]} 21.
Bxd8 {[%clk 0:03:45.5]} 1-0

[Event "Live Chess"]
[Site "Chess.com"]
[Date "2024.06.02"]
[Round "-"]
[White "Colm_Buckley"]
[Black "raimundklein"]
[Result "1/2-1/2"]
[WhiteElo "1881"]
[BlackElo "1591"]
[TimeControl "300"]
[EndTime "7:40:11 PDT"]
[Termination "Game drawn - timeout vs insufficient material"]

1. d4 {[%clk 0:04:58]} 1... Nf6 {[%clk 0:04:58.4]} 2. c4 {[%clk 0:04:57.5]} 2...
g6 {[%clk 0:04:57.5]} 3. Nc3 {[%clk 0:04:56.9]} 3... Bg7 {[%clk 0:04:56.8]} 4.
e4 {[%clk 0:04:56.5]} 4... d6 {[%clk 0:04:56]} 5. Be2 {[%clk 0:04:56]} 5... O-O
{[%clk 0:04:54.6]} 6. Nf3 {[%clk 0:04:55.3]} 6... e5 {[%clk 0:04:53.7]} 7. O-O
{[%clk 0:04:54]} 7... Nc6 {[%clk 0:04:52.4]} 8. d5 {[%clk 0:04:51.4]} 8... Ne7
{[%clk 0:04:49.5]} 9. b4 {[%clk 0:04:47.1]} 9... Nh5 {[%clk 0:04:47.1]} 10. c5
{[%clk 0:04:44.1]} 10... f5 {[%clk 0:04:42.9]} 11. Bg5 {[%clk 0:04:39.5]} 11...
h6 {[%clk 0:04:40]} 12. Bxe7 {[%clk 0:04:38.1]} 12... Qxe7 {[%clk 0:04:38.6]}
13. cxd6 {[%clk 0:04:31.7]} 13... cxd6 {[%clk 0:04:37]} 14. Rc1 {[%clk
0:04:28.3]} 14... Nf6 {[%clk 0:04:34.9]} 15. exf5 {[%clk 0:04:20.3]} 15... gxf5
{[%clk 0:04:32]} 16. Nb5 {[%clk 0:04:18.8]} 16... Ne8 {[%clk 0:04:19.2]} 17.
Nxa7 {[%clk 0:03:50.5]} 17... Bd7 {[%clk 0:04:05.6]} 18. Nb5 {[%clk 0:03:41.2]}
18... Bxb5 {[%clk 0:04:03.7]} 19. Bxb5 {[%clk 0:03:38.5]} 19... Rxa2 {[%clk
0:04:03.2]} 20. Bxe8 {[%clk 0:03:36.6]} 20... Rxe8 {[%clk 0:03:54.5]} 21. Ra1
{[%clk 0:03:24.4]} 21... Rea8 {[%clk 0:03:52.8]} 22. Rxa2 {[%clk 0:03:22.8]}
22... Rxa2 {[%clk 0:03:52]} 23. Qb3 {[%clk 0:03:21.9]} 23... Ra8 {[%clk
0:03:27.9]} 24. g3 {[%clk 0:03:17.5]} 24... e4 {[%clk 0:03:15.6]} 25. Nh4 {[%clk
0:03:15.8]} 25... Qf6 {[%clk 0:03:09.6]} 26. Qc2 {[%clk 0:02:56.6]} 26... Kh7
{[%clk 0:03:05.2]} 27. Qc7 {[%clk 0:02:44.1]} 27... f4 {[%clk 0:02:56.4]} 28.
Qd7 {[%clk 0:02:26.3]} 28... Rf8 {[%clk 0:02:48.7]} 29. b5 {[%clk 0:02:08.9]}
29... Rf7 {[%clk 0:02:46.3]} 30. Qg4 {[%clk 0:01:58.5]} 30... Qg5 {[%clk
0:02:20.6]} 31. Qxg5 {[%clk 0:01:41.9]} 31... hxg5 {[%clk 0:02:20.5]} 32. Ng2
{[%clk 0:01:40]} 32... Rf5 {[%clk 0:02:14.8]} 33. gxf4 {[%clk 0:01:35.2]} 33...
gxf4 {[%clk 0:02:14.7]} 34. Rd1 {[%clk 0:01:27.3]} 34... f3 {[%clk 0:02:06.2]}
35. Ne3 {[%clk 0:01:24.2]} 35... Rg5+ {[%clk 0:02:05.2]} 36. Kh1 {[%clk
0:01:15.5]} 36... Be5 {[%clk 0:02:03.3]} 37. Rg1 {[%clk 0:01:07.3]} 37... Kg6
{[%clk 0:01:56.8]} 38. Rxg5+ {[%clk 0:01:05]} 38... Kxg5 {[%clk 0:01:55.8]} 39.
Kg1 {[%clk 0:00:54.3]} 39... Kh4 {[%clk 0:01:53.9]} 40. Nc4 {[%clk 0:00:47.1]}
40... Bf4 {[%clk 0:01:47.1]} 41. b6 {[%clk 0:00:41.9]} 41... Kh3 {[%clk
0:01:44.5]} 42. Na5 {[%clk 0:00:40.8]} 42... Bxh2+ {[%clk 0:01:40.2]} 43. Kf1
{[%clk 0:00:39.3]} 43... Be5 {[%clk 0:01:06.1]} 44. Nxb7 {[%clk 0:00:38.3]}
44... Bd4 {[%clk 0:01:04.6]} 45. Nxd6 {[%clk 0:00:34]} 45... Bxb6 {[%clk
0:01:03.3]} 46. Nxe4 {[%clk 0:00:33]} 46... Kg4 {[%clk 0:00:57.7]} 47. d6 {[%clk
0:00:20.6]} 47... Kf4 {[%clk 0:00:54.8]} 48. Nd2 {[%clk 0:00:13.9]} 48... Ke5
{[%clk 0:00:52.2]} 49. Nc4+ {[%clk 0:00:12.4]} 49... Kd5 {[%clk 0:00:49.4]} 50.
Nxb6+ {[%clk 0:00:11.2]} 50... Kxd6 {[%clk 0:00:48.4]} 51. Nc4+ {[%clk
0:00:10.9]} 51... Kd5 {[%clk 0:00:47.2]} 52. Nd2 {[%clk 0:00:10.4]} 52... Ke5
{[%clk 0:00:44.1]} 53. Nxf3+ {[%clk 0:00:08.9]} 53... Kf4 {[%clk 0:00:43.7]} 54.
Ke2 {[%clk 0:00:08.5]} 54... Ke4 {[%clk 0:00:42.2]} 55. Nd2+ {[%clk 0:00:08.4]}
55... Kf4 {[%clk 0:00:41.3]} 56. f3 {[%clk 0:00:08.3]} 56... Kf5 {[%clk
0:00:40.3]} 57. Ne4 {[%clk 0:00:08.1]} 57... Kf4 {[%clk 0:00:39.5]} 58. Kf2
{[%clk 0:00:07.8]} 58... Kf5 {[%clk 0:00:38.1]} 59. Ke3 {[%clk 0:00:07.7]} 59...
Ke5 {[%clk 0:00:37.1]} 60. f4+ {[%clk 0:00:07.6]} 60... Kf5 {[%clk 0:00:36.2]}
61. Ng3+ {[%clk 0:00:06.6]} 61... Kf6 {[%clk 0:00:34.1]} 62. Ke4 {[%clk
0:00:06.3]} 62... Ke6 {[%clk 0:00:33.3]} 63. f5+ {[%clk 0:00:06.2]} 63... Kf6
{[%clk 0:00:32.9]} 64. Kf4 {[%clk 0:00:05.4]} 64... Kf7 {[%clk 0:00:31.8]} 65.
Kg5 {[%clk 0:00:05]} 65... Kg7 {[%clk 0:00:30.8]} 66. f6+ {[%clk 0:00:04.9]}
66... Kf7 {[%clk 0:00:30.1]} 67. Nf5 {[%clk 0:00:04.8]} 67... Kf8 {[%clk
0:00:27.9]} 68. Nh6 {[%clk 0:00:04.7]} 68... Ke8 {[%clk 0:00:26]} 69. Kg6 {[%clk
0:00:04.6]} 69... Kf8 {[%clk 0:00:23.6]} 70. f7 {[%clk 0:00:04.5]} 70... Ke7
{[%clk 0:00:22.2]} 71. Kg7 {[%clk 0:00:04.4]} 71... Ke6 {[%clk 0:00:21.3]} 72.
f8=Q {[%clk 0:00:02.9]} 72... Ke5 {[%clk 0:00:21.2]} 73. Qf6+ {[%clk 0:00:02.1]}
73... Kd5 {[%clk 0:00:19.8]} 74. Qf5+ {[%clk 0:00:01.7]} 74... Kd4 {[%clk
0:00:19]} 75. Ng4 {[%clk 0:00:01.2]} 75... Kc4 {[%clk 0:00:16.8]} 76. Nf2 {[%clk
0:00:00.5]} 76... Kc3 {[%clk 0:00:15.5]} 1/2-1/2

[Event "Live Chess"]
[Site "Chess.com"]
[Date "2024.06.02"]
[Round "-"]
[White "Larchikov"]
[Black "Ferrarifan27"]
[Result "0-1"]
[WhiteElo "2087"]
[BlackElo "2147"]
[TimeControl "300"]
[EndTime "7:40:40 PDT"]
[Termination "Ferrarifan27 won by resignation"]

1. e4 {[%clk 0:04:55.6]} 1... e5 {[%clk 0:04:58.4]} 2. Nc3 {[%clk 0:04:53.8]}
2... Nc6 {[%clk 0:04:56.9]} 3. Bc4 {[%clk 0:04:52.5]} 3... Bc5 {[%clk
0:04:54.8]} 4. Nf3 {[%clk 0:04:51]} 4... Nf6 {[%clk 0:04:49]} 5. O-O {[%clk
0:04:49]} 5... O-O {[%clk 0:04:47.1]} 6. d3 {[%clk 0:04:47]} 6... h6 {[%clk
0:04:44.4]} 7. Be3 {[%clk 0:04:45.9]} 7... Bxe3 {[%clk 0:04:43.1]} 8. fxe3
{[%clk 0:04:45.8]} 8... d6 {[%clk 0:04:41.3]} 9. d4 {[%clk 0:04:35.4]} 9... Qe7
{[%clk 0:04:36.1]} 10. Nd5 {[%clk 0:04:31.7]} 10... Nxd5 {[%clk 0:04:34.4]} 11.
Bxd5 {[%clk 0:04:28]} 11... Bd7 {[%clk 0:04:26.7]} 12. Qe1 {[%clk 0:03:46.8]}
12... Nd8 {[%clk 0:04:16.5]} 13. Nh4 {[%clk 0:03:39.9]} 13... Be6 {[%clk
0:03:57]} 14. Bxe6 {[%clk 0:03:33.2]} 14... Nxe6 {[%clk 0:03:48]} 15. Qg3 {[%clk
0:03:22.9]} 15... Qg5 {[%clk 0:03:41.6]} 16. Nf5 {[%clk 0:03:11.7]} 16... Qxg3
{[%clk 0:03:37.2]} 17. hxg3 {[%clk 0:03:09.1]} 17... Kh7 {[%clk 0:03:34.8]} 18.
g4 {[%clk 0:03:00]} 18... g6 {[%clk 0:03:32.2]} 19. Ng3 {[%clk 0:02:48.7]} 19...
exd4 {[%clk 0:03:31.2]} 20. exd4 {[%clk 0:02:39.2]} 20... Nxd4 {[%clk
0:03:30.1]} 21. Rf6 {[%clk 0:02:37.2]} 21... Kg7 {[%clk 0:03:27.4]} 22. Rf2
{[%clk 0:02:33.3]} 22... Rfe8 {[%clk 0:03:20]} 23. c3 {[%clk 0:02:26.2]} 23...
Ne6 {[%clk 0:03:18.1]} 24. Raf1 {[%clk 0:01:44.8]} 24... Ng5 {[%clk 0:03:15.9]}
25. Re2 {[%clk 0:01:41.6]} 25... Re7 {[%clk 0:03:13.6]} 26. Rfe1 {[%clk
0:01:39.4]} 26... Rae8 {[%clk 0:03:11.6]} 27. Kf2 {[%clk 0:01:38.1]} 27... Ne6
{[%clk 0:03:00.8]} 28. Re3 {[%clk 0:01:36]} 28... Nf4 {[%clk 0:02:56]} 29. Rf3
{[%clk 0:01:33.7]} 29... Ne6 {[%clk 0:02:52.1]} 30. Rfe3 {[%clk 0:01:29.7]}
30... Ng5 {[%clk 0:02:47.8]} 31. R1e2 {[%clk 0:01:28]} 31... Re5 {[%clk
0:02:45.9]} 32. Ke1 {[%clk 0:01:26]} 32... d5 {[%clk 0:02:38.7]} 33. Kd2 {[%clk
0:01:18]} 33... Nxe4+ {[%clk 0:02:37]} 34. Nxe4 {[%clk 0:01:16.3]} 34... Rxe4
{[%clk 0:02:36]} 35. Rxe4 {[%clk 0:01:15.2]} 35... Rxe4 {[%clk 0:02:34.5]} 36.
Rf2 {[%clk 0:01:14.2]} 0-1

[Event "Live Chess"]
[Site "Chess.com"]
[Date "2024.06.02"]
[Round "-"]
[White "JanMur7"]
[Black "Queensandpawns"]
[Result "0-1"]
[WhiteElo "2277"]
[BlackElo "2272"]
[TimeControl "300"]
[EndTime "7:41:00 PDT"]
[Termination "Queensandpawns won by resignation"]

1. c4 {[%clk 0:04:57.9]} 1... e5 {[%clk 0:04:57.2]} 2. Nc3 {[%clk 0:04:57.2]}
2... Nc6 {[%clk 0:04:56.5]} 3. Nf3 {[%clk 0:04:55.9]} 3... f5 {[%clk 0:04:54.8]}
4. e4 {[%clk 0:04:53.3]} 4... d6 {[%clk 0:04:53.6]} 5. d4 {[%clk 0:04:52]} 5...
Nf6 {[%clk 0:04:51.1]} 6. dxe5 {[%clk 0:04:50.3]} 6... Nxe4 {[%clk 0:04:50.2]}
7. exd6 {[%clk 0:04:46.3]} 7... Bxd6 {[%clk 0:04:48]} 8. Nxe4 {[%clk 0:04:44.7]}
8... fxe4 {[%clk 0:04:47]} 9. Ng5 {[%clk 0:04:44.2]} 9... O-O {[%clk 0:04:44.5]}
10. Qd5+ {[%clk 0:04:41.7]} 10... Kh8 {[%clk 0:04:41.5]} 11. Nf7+ {[%clk
0:04:41.2]} 11... Rxf7 {[%clk 0:04:39.8]} 12. Qxf7 {[%clk 0:04:41.1]} 12... Bg4
{[%clk 0:04:38.6]} 13. h3 {[%clk 0:04:36.3]} 13... Bb4+ {[%clk 0:04:26.1]} 0-1

[Event "Live Chess"]
[Site "Chess.com"]
[Date "2024.06.02"]
[Round "-"]
[White "80Times"]
[Black "agamilewska"]
[Result "0-1"]
[WhiteElo "1889"]
[BlackElo "1777"]
[TimeControl "300"]
[EndTime "7:41:14 PDT"]
[Termination "agamilewska won by resignation"]

1. e4 {[%clk 0:04:57.4]} 1... e5 {[%clk 0:04:59.2]} 2. Bc4 {[%clk 0:04:53.7]}
2... Nc6 {[%clk 0:04:57.9]} 3. Nc3 {[%clk 0:04:52.4]} 3... Nf6 {[%clk
0:04:56.7]} 4. d3 {[%clk 0:04:51.4]} 4... Bb4 {[%clk 0:04:56]} 5. Ne2 {[%clk
0:04:50.1]} 5... d5 {[%clk 0:04:52.1]} 6. exd5 {[%clk 0:04:48.8]} 6... Nxd5
{[%clk 0:04:52]} 7. O-O {[%clk 0:04:47]} 7... Bxc3 {[%clk 0:04:49]} 8. bxc3
{[%clk 0:04:45.5]} 8... O-O {[%clk 0:04:46]} 9. f4 {[%clk 0:04:43.8]} 9... exf4
{[%clk 0:04:43]} 10. Nxf4 {[%clk 0:04:42.6]} 10... Nxc3 {[%clk 0:04:38.8]} 11.
Qh5 {[%clk 0:04:29.3]} 11... Qd4+ {[%clk 0:04:28.1]} 12. Kh1 {[%clk 0:04:25.7]}
12... Ne5 {[%clk 0:04:27.4]} 13. Bb2 {[%clk 0:04:16.6]} 13... Nxc4 {[%clk
0:04:25.8]} 14. dxc4 {[%clk 0:04:10.8]} 14... Qxc4 {[%clk 0:04:21.1]} 15. Rf3
{[%clk 0:04:06.6]} 15... Ne4 {[%clk 0:04:11.1]} 16. Nd5 {[%clk 0:03:53.9]} 16...
Bg4 {[%clk 0:03:14.2]} 17. Ne7+ {[%clk 0:03:39.5]} 17... Kh8 {[%clk 0:03:12.7]}
18. Qh6 {[%clk 0:02:58]} 18... f6 {[%clk 0:02:49.7]} 19. Ng6+ {[%clk 0:02:51.2]}
19... Kg8 {[%clk 0:02:48.7]} 20. Ne7+ {[%clk 0:02:34.4]} 20... Kf7 {[%clk
0:02:45.1]} 21. Qxh7 {[%clk 0:02:32.9]} 21... Bxf3 {[%clk 0:02:42]} 22. gxf3
{[%clk 0:02:25.3]} 22... Nf2+ {[%clk 0:02:38.7]} 23. Kg2 {[%clk 0:02:23.9]}
23... Qe6 {[%clk 0:01:44.6]} 24. Qg6+ {[%clk 0:01:58.8]} 24... Kxe7 {[%clk
0:01:41.8]} 25. Kxf2 {[%clk 0:01:57.7]} 25... Qb6+ {[%clk 0:01:39]} 26. Kg3
{[%clk 0:01:54.3]} 26... Qd6+ {[%clk 0:01:22.2]} 27. f4 {[%clk 0:01:29.4]} 27...
Rae8 {[%clk 0:01:05.4]} 28. Qxg7+ {[%clk 0:01:25.6]} 28... Kd8 {[%clk
0:01:03.2]} 29. Qg4 {[%clk 0:01:17.1]} 29... Re3+ {[%clk 0:01:00.6]} 30. Kh4
{[%clk 0:01:09.6]} 30... Rh8+ {[%clk 0:00:59.6]} 0-1

[Event "Live Chess"]
[Site "Chess.com"]
[Date "2024.06.02"]
[Round "-"]
[White "gmnorfolk"]
[Black "joellloyd"]
[Result "1-0"]
[WhiteElo "2138"]
[BlackElo "1892"]
[TimeControl "300"]
[EndTime "7:41:35 PDT"]
[Termination "gmnorfolk won by resignation"]

1. d4 {[%clk 0:04:58.2]} 1... Nf6 {[%clk 0:04:58.9]} 2. Nf3 {[%clk 0:04:56.1]}
2... d5 {[%clk 0:04:58]} 3. Bf4 {[%clk 0:04:54.2]} 3... c5 {[%clk 0:04:56.8]} 4.
c3 {[%clk 0:04:52.5]} 4... Nc6 {[%clk 0:04:56]} 5. e3 {[%clk 0:04:51]} 5... e6
{[%clk 0:04:52.9]} 6. Nbd2 {[%clk 0:04:50.6]} 6... Bd6 {[%clk 0:04:52.2]} 7. Bg3
{[%clk 0:04:47.7]} 7... O-O {[%clk 0:04:51.3]} 8. Bd3 {[%clk 0:04:46.8]} 8... b6
{[%clk 0:04:49.6]} 9. O-O {[%clk 0:04:45.4]} 9... Bb7 {[%clk 0:04:48.8]} 10. Qe2
{[%clk 0:04:44.7]} 10... c4 {[%clk 0:04:40.3]} 11. Bc2 {[%clk 0:04:43.2]} 11...
Qc7 {[%clk 0:04:33.7]} 12. e4 {[%clk 0:04:41.3]} 12... Bxg3 {[%clk 0:04:25.9]}
13. fxg3 {[%clk 0:04:39.6]} 13... b5 {[%clk 0:04:20.8]} 14. e5 {[%clk
0:04:38.6]} 14... Nd7 {[%clk 0:04:11.3]} 15. Bxh7+ {[%clk 0:04:34.3]} 1-0

[Event "Live Chess"]
[Site "Chess.com"]
[Date "2024.06.02"]
[Round "-"]
[White "KeithArkell"]
[Black "Mangoalo"]
[Result "1-0"]
[WhiteElo "2401"]
[BlackElo "1066"]
[TimeControl "300"]
[EndTime "7:41:41 PDT"]
[Termination "KeithArkell won by resignation"]

1. d4 {[%clk 0:04:56.5]} 1... Nf6 {[%clk 0:04:57.1]} 2. Nf3 {[%clk 0:04:55.8]}
2... e6 {[%clk 0:04:55]} 3. c4 {[%clk 0:04:55.5]} 3... Bb4+ {[%clk 0:04:51.4]}
4. Bd2 {[%clk 0:04:54.6]} 4... Bxd2+ {[%clk 0:04:50.4]} 5. Qxd2 {[%clk
0:04:54.1]} 5... O-O {[%clk 0:04:49]} 6. d5 {[%clk 0:04:53]} 6... Qe7 {[%clk
0:04:46]} 7. Nc3 {[%clk 0:04:52.2]} 7... exd5 {[%clk 0:04:44]} 8. Nxd5 {[%clk
0:04:51.2]} 8... Nxd5 {[%clk 0:04:42.9]} 9. cxd5 {[%clk 0:04:50.5]} 9... c6
{[%clk 0:04:41.4]} 10. e3 {[%clk 0:04:49.3]} 10... cxd5 {[%clk 0:04:40.5]} 11.
Qxd5 {[%clk 0:04:47.7]} 11... Nc6 {[%clk 0:04:37.9]} 12. Be2 {[%clk 0:04:45.8]}
12... d6 {[%clk 0:04:36.7]} 13. O-O {[%clk 0:04:44.4]} 13... Be6 {[%clk
0:04:35.1]} 14. Qd2 {[%clk 0:04:43.4]} 14... Rac8 {[%clk 0:04:31]} 15. Rac1
{[%clk 0:04:41.8]} 15... Bxa2 {[%clk 0:04:27.1]} 16. h3 {[%clk 0:04:37.4]} 16...
h6 {[%clk 0:04:24.6]} 17. Nd4 {[%clk 0:04:34.9]} 17... Nxd4 {[%clk 0:04:21]} 18.
Qxd4 {[%clk 0:04:27.5]} 18... Rxc1 {[%clk 0:04:15.4]} 19. Rxc1 {[%clk 0:04:26]}
19... Be6 {[%clk 0:04:11.3]} 20. Qxa7 {[%clk 0:04:15.7]} 20... Rc8 {[%clk
0:04:08.9]} 21. Rxc8+ {[%clk 0:04:13.1]} 21... Bxc8 {[%clk 0:04:08.8]} 22. Qb8
{[%clk 0:04:12.1]} 22... Qd7 {[%clk 0:04:02.7]} 23. e4 {[%clk 0:04:03.8]} 23...
Kh7 {[%clk 0:03:54.3]} 24. Bg4 {[%clk 0:04:00.9]} 1-0

[Event "Live Chess"]
[Site "Chess.com"]
[Date "2024.06.02"]
[Round "-"]
[White "Inglaterra"]
[Black "RichardABates"]
[Result "1/2-1/2"]
[WhiteElo "2041"]
[BlackElo "2369"]
[TimeControl "300"]
[EndTime "7:41:48 PDT"]
[Termination "Game drawn by repetition"]

1. c4 {[%clk 0:04:57.8]} 1... g6 {[%clk 0:04:58]} 2. Nf3 {[%clk 0:04:56.3]} 2...
Bg7 {[%clk 0:04:56.5]} 3. g3 {[%clk 0:04:55.5]} 3... Nf6 {[%clk 0:04:54.9]} 4.
Bg2 {[%clk 0:04:54.9]} 4... O-O {[%clk 0:04:53.4]} 5. O-O {[%clk 0:04:54.6]}
5... d6 {[%clk 0:04:51.9]} 6. d4 {[%clk 0:04:54.4]} 6... c6 {[%clk 0:04:48.3]}
7. Nc3 {[%clk 0:04:53.8]} 7... Qb6 {[%clk 0:04:46.7]} 8. b3 {[%clk 0:04:50.7]}
8... Qa5 {[%clk 0:04:45.4]} 9. Bb2 {[%clk 0:04:48.8]} 9... Qh5 {[%clk
0:04:43.9]} 10. e4 {[%clk 0:04:37.6]} 10... Bg4 {[%clk 0:04:38.4]} 11. Qd3
{[%clk 0:04:34.2]} 11... Na6 {[%clk 0:04:35.6]} 12. a3 {[%clk 0:04:31.8]} 12...
e5 {[%clk 0:04:32.4]} 13. b4 {[%clk 0:04:09.2]} 13... Nc7 {[%clk 0:04:20.3]} 14.
Rfe1 {[%clk 0:03:54.8]} 14... Ne6 {[%clk 0:04:15.5]} 15. Ne2 {[%clk 0:03:41.8]}
15... Nd7 {[%clk 0:04:06.3]} 16. dxe5 {[%clk 0:03:33.7]} 16... Bxf3 {[%clk
0:03:52.9]} 17. Bxf3 {[%clk 0:03:28.7]} 17... Nxe5 {[%clk 0:03:51.6]} 18. Bxe5
{[%clk 0:03:22.6]} 18... Qxe5 {[%clk 0:03:49.8]} 19. Rad1 {[%clk 0:03:15.1]}
19... Rad8 {[%clk 0:03:47.6]} 20. Bg2 {[%clk 0:03:07.6]} 20... g5 {[%clk
0:03:42.2]} 21. Qf3 {[%clk 0:02:38]} 21... f5 {[%clk 0:03:34.1]} 22. exf5 {[%clk
0:02:35.3]} 22... Rxf5 {[%clk 0:03:32.4]} 23. Qh5 {[%clk 0:02:30.4]} 23... Qf6
{[%clk 0:03:17.4]} 24. Bh3 {[%clk 0:02:10.1]} 24... Re5 {[%clk 0:02:59.4]} 25.
Nc1 {[%clk 0:01:46.9]} 25... Rf8 {[%clk 0:02:45]} 26. Nd3 {[%clk 0:01:41.7]}
26... Rxe1+ {[%clk 0:02:24]} 27. Rxe1 {[%clk 0:01:41.6]} 27... Nd4 {[%clk
0:02:22.3]} 28. Re3 {[%clk 0:01:27.3]} 28... Nf3+ {[%clk 0:02:11.7]} 29. Kg2
{[%clk 0:01:23.2]} 29... Ne5 {[%clk 0:02:10.1]} 30. Qe2 {[%clk 0:01:14.3]} 30...
h5 {[%clk 0:01:57.2]} 31. Nxe5 {[%clk 0:01:08.3]} 31... dxe5 {[%clk 0:01:54.7]}
32. Kg1 {[%clk 0:01:07]} 32... g4 {[%clk 0:01:51.3]} 33. Bg2 {[%clk 0:01:05.9]}
33... Rd8 {[%clk 0:01:45.3]} 34. Be4 {[%clk 0:01:04.3]} 34... Rd4 {[%clk
0:01:40.6]} 35. Rd3 {[%clk 0:00:55.6]} 35... Bh6 {[%clk 0:01:31.4]} 36. Bg2
{[%clk 0:00:37.4]} 36... Rxc4 {[%clk 0:01:19]} 37. Rd8+ {[%clk 0:00:33.2]} 37...
Qxd8 {[%clk 0:01:16.7]} 38. Qxc4+ {[%clk 0:00:32.8]} 38... Kg7 {[%clk
0:01:13.9]} 39. Qe6 {[%clk 0:00:30.3]} 39... Qd1+ {[%clk 0:01:02.5]} 40. Bf1
{[%clk 0:00:29.5]} 40... Qe1 {[%clk 0:00:38.1]} 41. Qe7+ {[%clk 0:00:28.4]}
41... Kg6 {[%clk 0:00:35.8]} 42. Qe6+ {[%clk 0:00:27.4]} 42... Kg7 {[%clk
0:00:34.7]} 43. Qe7+ {[%clk 0:00:26.8]} 43... Kg6 {[%clk 0:00:33.6]} 44. Qe6+
{[%clk 0:00:26.4]} 44... Kg7 {[%clk 0:00:32.7]} 1/2-1/2